bitfinex/quotes_BTCUSD_20241116
["timestamp","ask_amount","ask_price","bid_price","bid_amount"]
[1731751114934,0.109596,91244.0,91241.0,0.0816055]
[1731751115141,0.109591,91248.0,91241.0,0.0816055]
[1731751115351,0.219178,91250.0,91241.0,0.0816055]
[1731751115556,0.109595,91245.0,91241.0,0.0816055]
[1731751115995,0.0461,91251.0,91241.0,0.0816055]
[1731751116237,0.109591,91248.0,91242.0,0.109597]
[1731751116416,0.10906255,91247.0,91242.0,0.109597]
[1731751116870,0.10906255,91247.0,91241.0,0.0816055]
[1731751116871,0.10906255,91247.0,91245.0,0.109593]
[1731751117079,0.10906255,91247.0,91246.0,0.1911985]
[1731751117311,0.10906255,91247.0,91246.0,0.109593]
[1731751118240,0.11371995,91247.0,91246.0,0.109593]
[1731751118450,0.10906255,91247.0,91246.0,0.109593]
[1731751119073,0.10906255,91247.0,91244.0,0.109595]
[1731751119299,0.10906255,91247.0,91245.0,0.109594]
[1731751119518,0.00465735,91246.0,91245.0,0.109594]
[1731751119940,0.10906255,91247.0,91245.0,0.109594]
[1731751120181,0.10906255,91247.0,91243.0,0.219194]
[1731751120408,0.00465735,91246.0,91245.0,0.109594]
[1731751120849,0.10906255,91247.0,91246.0,0.109593]
[1731751121258,0.11371995,91247.0,91246.0,0.109593]
[1731751121485,0.10906255,91247.0,91246.0,0.109593]
[1731751121697,0.11371995,91247.0,91246.0,0.109593]
[1731751121928,0.0046574,91247.0,91246.0,0.109593]
[1731751122143,0.0046574,91247.0,91246.0,0.191593]
[1731751122368,0.16417037,91257.0,91256.0,0.109581]
[1731751122586,0.27323292,91257.0,91256.0,0.1911865]
[1731751122814,0.27788931,91257.0,91256.0,0.1911865]
[1731751123035,0.11371894,91257.0,91256.0,0.1911865]
[1731751123489,0.10906255,91257.0,91256.0,0.1911865]
[1731751123727,0.00465639,91257.0,91256.0,0.1911865]
[1731751124157,0.16417037,91263.0,91256.0,0.0816055]
[1731751124365,0.16417037,91263.0,91262.0,0.109574]
[1731751124775,0.0461,91264.0,91256.0,0.3007685]
[1731751124978,0.0461,91264.0,91263.0,0.109573]
[1731751125618,0.15516255,91264.0,91263.0,0.109573]
[1731751126048,0.15516255,91264.0,91263.0,0.1911785]
[1731751128314,0.0461,91269.0,91268.0,0.109567]
[1731751128536,0.15516255,91269.0,91268.0,0.109567]
[1731751129744,0.15516255,91269.0,91266.0,0.109568]
[1731751129956,0.10906255,91268.0,91266.0,0.109568]
[1731751130176,0.10906255,91268.0,91267.0,0.109568]
[1731751133776,0.11077815,91268.0,91266.0,0.109569]
[1731751133998,0.11077815,91268.0,91264.0,0.109572]
[1731751134221,0.11077815,91268.0,91263.0,0.0816055]
[1731751134429,0.0452,91266.0,91253.0,0.0816055]
[1731751134639,0.0452,91262.0,91255.0,0.109582]
[1731751134846,0.10906255,91261.0,91254.0,0.109584]
[1731751135052,0.10906255,91261.0,91256.0,0.109581]
[1731751135260,0.10906255,91261.0,91257.0,0.10958]
[1731751135688,0.10906255,91261.0,91255.0,0.109581]
[1731751135912,0.10906255,91261.0,91253.0,0.0816055]
[1731751135913,0.21863855,91261.0,91254.0,0.109583]
[1731751136120,0.21863855,91261.0,91253.0,0.0816055]
[1731751136121,0.21863855,91261.0,91255.0,0.109582]
[1731751136293,0.10906255,91261.0,91256.0,0.109581]
[1731751136734,0.10906255,91261.0,91253.0,0.0816055]
[1731751137001,0.10906255,91261.0,91256.0,0.10958]
[1731751137420,0.00468118,91260.0,91256.0,0.10958]
[1731751137631,0.10906255,91259.0,91256.0,0.10958]
[1731751138068,0.00468107,91258.0,91254.0,0.219168]
[1731751138284,0.11374362,91258.0,91256.0,0.109581]
[1731751138715,0.11374362,91258.0,91253.0,0.0816055]
[1731751138926,0.11374362,91258.0,91255.0,0.219166]
[1731751139148,0.11374362,91258.0,91257.0,0.10958]
[1731751139572,0.11374362,91258.0,91253.0,0.0816055]
[1731751139788,0.11374362,91258.0,91257.0,0.10958]
[1731751143842,0.00468107,91258.0,91257.0,0.1911855]
[1731751144063,0.00468107,91258.0,91257.0,0.10958]
[1731751144303,0.00468107,91258.0,91253.0,0.0816055]
[1731751144304,0.077,91265.0,91261.0,0.109575]
[1731751144570,0.00493688,91264.0,91253.0,0.0816055]
[1731751144809,0.00493688,91264.0,91262.0,0.0816055]
[1731751145006,0.00493688,91264.0,91263.0,0.109573]
[1731751145461,0.077,91265.0,91263.0,0.109573]
[1731751145890,0.00493688,91264.0,91263.0,0.109573]
[1731751146311,0.077,91265.0,91264.0,0.109572]
[1731751146748,0.08193693,91265.0,91264.0,0.109572]
[1731751148306,0.08193693,91265.0,91262.0,0.0816055]
[1731751148715,0.08193693,91265.0,91262.0,0.1911795]
[1731751148923,0.08193693,91265.0,91262.0,0.0816055]
[1731751149128,0.08193693,91265.0,91262.0,0.1911795]
[1731751150195,0.08193693,91265.0,91262.0,0.0816055]
[1731751151140,0.0477,91262.0,91251.0,0.1911925]
[1731751151345,0.109577,91260.0,91250.0,0.109588]
[1731751151585,0.10959,91250.0,91242.0,0.0008575]
[1731751151808,0.0477,91249.0,91242.0,0.0008575]
[1731751152014,0.05263602,91249.0,91248.0,0.0816055]
[1731751154630,0.05263602,91249.0,91248.0,0.1911965]
[1731751156239,0.05263602,91249.0,91248.0,0.0816055]
[1731751156702,0.05263602,91249.0,91243.0,0.0816055]
[1731751156927,0.109592,91248.0,91243.0,0.0816055]
[1731751157143,0.0831,91247.0,91243.0,0.0816055]
[1731751157373,0.08800039,91247.0,91243.0,0.1912025]
[1731751157601,0.08800039,91247.0,91243.0,0.0816055]
[1731751157810,0.19759239,91247.0,91243.0,0.0816055]
[1731751158242,0.08800039,91247.0,91243.0,0.0816055]
[1731751158679,0.109594,91246.0,91243.0,0.0816055]
[1731751159092,0.0049046,91245.0,91243.0,0.0816055]
[1731751159744,0.0049033,91244.0,91243.0,0.1912025]
[1731751160157,0.0831,91247.0,91243.0,0.1912025]
[1731751160363,0.0049033,91244.0,91243.0,0.1912025]
[1731751160592,0.0831,91247.0,91243.0,0.1912025]
[1731751160818,0.0831,91247.0,91244.0,0.109595]
[1731751162478,0.0831,91247.0,91243.0,0.0816055]
[1731751162479,0.10906255,91246.0,91243.0,0.0816055]
[1731751162677,0.21865655,91246.0,91243.0,0.0816055]
[1731751164231,0.109595,91245.0,91243.0,0.0816055]
[1731751164432,0.10906255,91244.0,91243.0,0.0816055]
[1731751165077,0.21865855,91244.0,91243.0,0.0816055]
[1731751165285,0.21865855,91244.0,91242.0,0.0008575]
[1731751165286,0.109597,91243.0,91242.0,0.0008575]
[1731751165745,0.21865955,91243.0,91242.0,0.0008575]
[1731751165997,0.34945955,91243.0,91242.0,0.0008575]
[1731751167542,0.35435995,91243.0,91242.0,0.0008575]
[1731751178247,0.45896545,91243.0,91242.0,0.0008575]
[1731751178475,0.35435995,91243.0,91242.0,0.0008575]
[1731751179791,0.38235995,91243.0,91242.0,0.0008575]
[1731751182231,0.48027751,91243.0,91242.0,0.0008575]
[1731751182685,0.38235995,91243.0,91242.0,0.0008575]
[1731751188061,0.38735995,91243.0,91242.0,0.0008575]
[1731751193530,0.5342358,91243.0,91242.0,0.0008575]
[1731751193779,0.74876177,91243.0,91242.0,0.0008575]
[1731751194698,0.94459624,91243.0,91242.0,0.0008575]
[1731751195151,1.02620174,91243.0,91242.0,0.0008575]
[1731751196699,0.83036727,91243.0,91242.0,0.0008575]
[1731751197638,1.0752241,91243.0,91242.0,0.0008575]
[1731751197858,0.83036727,91243.0,91242.0,0.0008575]
[1731751198557,0.83036727,91243.0,91233.0,0.0008579]
[1731751198558,0.263504,91237.0,91233.0,0.0008579]
[1731751198808,0.81557387,91237.0,91233.0,0.0008579]
[1731751199029,0.82031613,91237.0,91233.0,0.0008579]
[1731751201983,0.73871063,91237.0,91233.0,0.0008579]
[1731751202448,0.82031613,91237.0,91233.0,0.0008579]
[1731751203170,0.002,91213.0,91190.0,0.005]
[1731751203362,0.002,91213.0,91161.0,0.24561177]
[1731751203363,0.219269,91212.0,91207.0,0.0816055]
[1731751203591,0.109639,91208.0,91207.0,0.0816055]
[1731751204262,0.219269,91212.0,91201.0,0.109647]
[1731751204516,0.109639,91208.0,91207.0,0.0816055]
[1731751205697,0.21870155,91208.0,91207.0,0.0816055]
[1731751207155,0.10906255,91208.0,91207.0,0.11811928]
[1731751207613,0.109634,91213.0,91207.0,0.22775928]
[1731751207850,0.10906255,91212.0,91207.0,0.14615378]
[1731751208996,0.21869755,91212.0,91207.0,0.03651378]
[1731751209425,0.21869755,91212.0,91210.0,0.0816055]
[1731751210646,0.109635,91211.0,91210.0,0.0816055]
[1731751210882,0.10906255,91211.0,91210.0,0.1912425]
[1731751211105,0.002,91225.0,91210.0,0.1912425]
[1731751211106,0.109613,91230.0,91223.0,0.109621]
[1731751211316,0.16417037,91224.0,91221.0,0.109622]
[1731751211536,0.10906255,91223.0,91218.0,0.0816055]
[1731751211793,0.10906255,91223.0,91218.0,0.1912325]
[1731751212021,0.10906255,91223.0,91218.0,0.0816055]
[1731751212506,0.10906255,91223.0,91220.0,0.109624]
[1731751212730,0.10906255,91223.0,91221.0,0.0816055]
[1731751213205,0.10906255,91223.0,91222.0,0.109622]
[1731751213894,0.342418,91233.0,91229.0,0.109613]
[1731751213895,0.1232,91233.0,91229.0,0.109613]
[1731751214143,0.10906255,91232.0,91227.0,0.0816055]
[1731751214386,0.10906255,91232.0,91229.0,0.109613]
[1731751214883,0.10906255,91232.0,91227.0,0.1912215]
[1731751215105,0.10906255,91232.0,91227.0,0.0816055]
[1731751215339,0.109615,91228.0,91222.0,0.0816055]
[1731751215558,0.10906255,91228.0,91226.0,0.109617]
[1731751215808,0.10906255,91228.0,91224.0,0.109619]
[1731751216050,0.10906255,91228.0,91222.0,0.0816055]
[1731751216727,0.10906255,91228.0,91223.0,0.219242]
[1731751217003,0.10906255,91228.0,91225.0,0.109618]
[1731751217221,0.10906255,91228.0,91227.0,0.109616]
[1731751217942,0.11375886,91228.0,91227.0,0.109616]
[1731751219494,0.11375886,91228.0,91222.0,0.0816055]
[1731751219934,0.11375886,91228.0,91226.0,0.109617]
[1731751220889,0.11375886,91228.0,91224.0,0.109619]
[1731751221552,0.11375886,91228.0,91225.0,0.109618]
[1731751221990,0.11547526,91228.0,91225.0,0.109618]
[1731751222443,0.11547526,91228.0,91222.0,0.0816055]
[1731751222663,0.19107526,91228.0,91222.0,0.0816055]
[1731751223127,0.19107526,91228.0,91225.0,0.109618]
[1731751223352,0.19107526,91228.0,91226.0,0.109616]
[1731751223584,0.19107526,91228.0,91223.0,0.219242]
[1731751223585,0.11547526,91228.0,91227.0,0.1912215]
[1731751223851,0.00641271,91228.0,91227.0,0.1912215]
[1731751224089,0.0017164,91228.0,91227.0,0.109616]
[1731751226692,0.0017164,91228.0,91227.0,0.1486485]
[1731751229188,0.0017164,91228.0,91227.0,0.1536485]
[1731751229407,0.0017164,91228.0,91227.0,0.1712485]
[1731751229860,0.0017164,91228.0,91227.0,0.1762485]
[1731751230541,0.0017164,91237.0,91227.0,0.1762485]
[1731751230542,0.0017164,91237.0,91236.0,0.2188105]
[1731751230767,0.0017154,91248.0,91236.0,0.2188105]
[1731751230768,0.0017154,91248.0,91246.0,0.01]
[1731751230984,0.0017154,91248.0,91247.0,0.127192]
[1731751231219,0.0017154,91248.0,91247.0,0.2087975]
[1731751231442,0.0017154,91248.0,91247.0,0.290403]
[1731751232387,0.0017154,91248.0,91247.0,0.295403]
[1731751233552,0.0017154,91248.0,91247.0,0.1911975]
[1731751234009,0.0017154,91248.0,91247.0,0.2306352]
[1731751239321,0.0017154,91248.0,91247.0,0.3172407]
[1731751239556,0.0017154,91248.0,91247.0,0.3398407]
[1731751240227,0.0017154,91248.0,91247.0,0.2582352]
[1731751240458,0.0017154,91248.0,91247.0,0.3398407]
[1731751242313,0.0017154,91248.0,91247.0,0.2582352]
[1731751242979,0.0017154,91248.0,91247.0,0.3398407]
[1731751247813,0.14399033,91263.0,91262.0,0.1911795]
[1731751248293,0.14777483,91263.0,91262.0,0.1911795]
[1731751248494,0.0775,91269.0,91267.0,0.109568]
[1731751248772,0.0775,91269.0,91267.0,0.1911735]
[1731751249864,0.0489156,91268.0,91267.0,0.109568]
[1731751250099,0.0489156,91268.0,91267.0,0.1911735]
[1731751258900,0.05270968,91268.0,91267.0,0.1911735]
[1731751259118,0.0489156,91268.0,91267.0,0.1911735]
[1731751260323,0.0489156,91268.0,91264.0,0.0397462]
[1731751260534,0.0489156,91268.0,91235.0,0.005]
[1731751260535,0.1284,91266.0,91235.0,0.005]
[1731751260759,0.219144,91264.0,91248.0,0.16417037]
[1731751260950,0.049,91257.0,91249.0,0.3007855]
[1731751261202,0.10906255,91256.0,91255.0,0.109583]
[1731751261422,0.1284,91255.0,91246.0,0.219186]
[1731751261637,0.15806255,91254.0,91253.0,0.109585]
[1731751261861,0.16185584,91254.0,91253.0,0.109585]
[1731751263935,0.24125584,91254.0,91253.0,0.109585]
[1731751264633,0.1284,91252.0,91248.0,0.109591]
[1731751264858,0.1284,91253.0,91248.0,0.109591]
[1731751265074,0.049,91250.0,91248.0,0.109591]
[1731751265289,0.049,91250.0,91249.0,0.10959]
[1731751266037,0.1284,91250.0,91249.0,0.10959]
[1731751266246,0.049,91249.0,91247.0,0.0824631]
[1731751266461,0.23746255,91248.0,91247.0,0.0824631]
[1731751267147,0.23746255,91248.0,91247.0,0.0008576]
[1731751267846,0.34705355,91248.0,91247.0,0.0008576]
[1731751270528,0.23746255,91248.0,91247.0,0.0008576]
[1731751272660,0.24121118,91248.0,91247.0,0.0008576]
[1731751276276,0.35080218,91248.0,91247.0,0.0008576]
[1731751277220,0.37580218,91248.0,91247.0,0.0008576]
[1731751278787,0.38264837,91248.0,91247.0,0.0008576]
[1731751279019,0.38080218,91248.0,91247.0,0.0008576]
[1731751279235,0.38764837,91248.0,91247.0,0.0008576]
[1731751279655,0.0461,91245.0,91240.0,0.0008578]
[1731751279915,0.261499,91241.0,91240.0,0.0008578]
[1731751280161,0.37740859,91241.0,91240.0,0.0008578]
[1731751280343,0.38110274,91241.0,91240.0,0.0008578]
[1731751281032,0.38610274,91241.0,91240.0,0.0008578]
[1731751281277,0.219223,91231.0,91218.0,0.109626]
[1731751281502,0.1269,91224.0,91217.0,0.0816055]
[1731751281721,0.1269,91224.0,91220.0,0.109625]
[1731751281952,0.1269,91224.0,91222.0,0.109622]
[1731751282428,0.1269,91224.0,91223.0,0.109621]
[1731751282918,0.1269,91224.0,91223.0,0.08708263]
[1731751283569,0.1269,91224.0,91221.0,0.109622]
[1731751283792,0.10906255,91223.0,91219.0,0.109625]
[1731751284073,0.10906255,91223.0,91214.0,0.109631]
[1731751284074,0.047,91220.0,91214.0,0.109631]
[1731751284290,0.047,91220.0,91213.0,0.219266]
[1731751284291,0.18856255,91219.0,91213.0,0.219266]
[1731751284512,0.18856255,91219.0,91211.0,0.0816055]
[1731751284733,0.18856255,91219.0,91213.0,0.109632]
[1731751284953,0.18856255,91219.0,91214.0,0.109631]
[1731751285216,0.18856255,91219.0,91215.0,0.10963]
[1731751285683,0.18856255,91219.0,91213.0,0.219266]
[1731751285913,0.18856255,91219.0,91214.0,0.219264]
[1731751286168,0.18856255,91219.0,91216.0,0.109629]
[1731751287076,0.18856255,91219.0,91214.0,0.109631]
[1731751287301,0.1265,91214.0,91206.0,0.0816055]
[1731751287527,0.21869555,91213.0,91193.0,0.005]
[1731751287766,0.109638,91209.0,91204.0,0.03863566]
[1731751288000,0.0795,91205.0,91200.0,0.109648]
[1731751288220,0.10906255,91204.0,91201.0,0.109647]
[1731751288436,0.236145,91203.0,91197.0,0.109652]
[1731751288659,0.236145,91203.0,91195.0,0.04092727]
[1731751288660,0.10906255,91202.0,91198.0,0.10965]
[1731751288887,0.10906255,91202.0,91200.0,0.109648]
[1731751289106,0.10906255,91202.0,91201.0,0.109647]
[1731751292887,0.10906255,91202.0,91201.0,0.1105047]
[1731751295406,0.10906255,91202.0,91201.0,0.1921102]
[1731751297715,0.1285,91213.0,91201.0,0.0824632]
[1731751297978,0.10906255,91212.0,91202.0,0.328939]
[1731751298205,0.10906255,91212.0,91211.0,0.109635]
[1731751300220,0.0816,91218.0,91217.0,0.109628]
[1731751300475,0.0469,91220.0,91219.0,0.109626]
[1731751307180,0.0439,91220.0,91219.0,0.109626]
[1731751308829,0.0017162,91223.0,91222.0,0.109622]
[1731751309056,0.0017162,91223.0,91222.0,0.1912275]
[1731751310304,0.0491162,91223.0,91222.0,0.109622]
[1731751310546,0.09769708,91258.0,91257.0,0.10958]
[1731751310818,0.16588577,91263.0,91262.0,0.109574]
[1731751311032,0.0017154,91263.0,91262.0,0.1911795]
[1731751312211,0.0017154,91263.0,91262.0,0.109574]
[1731751312436,0.0017154,91263.0,91262.0,0.1911795]
[1731751312904,0.0017154,91263.0,91262.0,0.00738767]
[1731751313152,0.0017154,91263.0,91262.0,0.15660637]
[1731751313623,0.0017154,91263.0,91262.0,0.11696167]
[1731751316491,0.0017154,91263.0,91262.0,0.12196167]
[1731751318125,0.0017154,91263.0,91262.0,0.12142167]
[1731751320091,0.0017158,91279.0,91267.0,0.114568]
[1731751322891,0.0017158,91279.0,91267.0,0.22863055]
[1731751324461,0.0017158,91279.0,91267.0,0.119568]
[1731751327421,0.0017158,91279.0,91278.0,0.23392541]
[1731751331537,0.0017158,91279.0,91278.0,0.27326223]
[1731751332527,0.0017158,91279.0,91278.0,0.27826223]
[1731751334810,0.0017158,91279.0,91278.0,0.40263264]
[1731751335046,0.0017158,91279.0,91278.0,0.27826223]
[1731751335724,0.0017158,91279.0,91278.0,0.28326223]
[1731751336360,0.0017156,91281.0,91280.0,0.119553]
[1731751336626,0.0017156,91281.0,91280.0,0.22861555]
[1731751338223,0.0017156,91281.0,91280.0,0.35298596]
[1731751339192,0.0017156,91281.0,91280.0,0.22861555]
[1731751340116,0.0017156,91281.0,91280.0,0.25021381]
[1731751341242,0.0017156,91281.0,91280.0,0.22861555]
[1731751341508,0.0017156,91281.0,91280.0,0.119553]
[1731751341747,0.0017156,91281.0,91280.0,0.109553]
[1731751346740,0.0484156,91281.0,91280.0,0.109553]
[1731751347186,0.05229287,91281.0,91280.0,0.109553]
[1731751347397,0.13159287,91281.0,91280.0,0.109553]
[1731751348739,0.24065542,91281.0,91278.0,0.0008575]
[1731751348961,0.18836255,91280.0,91278.0,0.0008575]
[1731751349192,0.18836255,91280.0,91279.0,0.109554]
[1731751349441,0.18836255,91280.0,91278.0,0.1104125]
[1731751349654,0.18836255,91280.0,91278.0,0.0008575]
[1731751349864,0.0793,91280.0,91279.0,0.23392441]
[1731751350322,0.0793,91280.0,91279.0,0.109554]
[1731751354740,0.0793,91280.0,91279.0,0.1104115]
[1731751354961,0.081015,91280.0,91279.0,0.1104115]
[1731751356327,0.001715,91280.0,91279.0,0.23478191]
[1731751356777,0.001715,91280.0,91279.0,0.24478191]
[1731751358131,0.001715,91280.0,91279.0,0.35384446]
[1731751363556,0.001715,91280.0,91279.0,0.1154115]
[1731751363773,0.001715,91280.0,91279.0,0.1204115]
[1731751366499,0.001715,91280.0,91279.0,0.1154115]
[1731751368514,0.001715,91280.0,91279.0,0.1204115]
[1731751370974,0.001715,91280.0,91279.0,0.1154115]
[1731751371626,0.001715,91280.0,91279.0,0.1104115]
[1731751372067,0.00559845,91280.0,91279.0,0.1104115]
[1731751372571,0.05139845,91280.0,91279.0,0.1104115]
[1731751373473,0.13459845,91280.0,91279.0,0.1104115]
[1731751378432,0.243661,91280.0,91279.0,0.0008575]
[1731751379368,0.353214,91280.0,91279.0,0.0008575]
[1731751380699,0.355214,91280.0,91279.0,0.0008575]
[1731751382009,0.378214,91280.0,91279.0,0.0008575]
[1731751382221,0.376214,91280.0,91279.0,0.0008575]
[1731751382437,0.376214,91280.0,91278.0,0.0008575]
[1731751382438,0.26139028,91279.0,91278.0,0.0008575]
[1731751382663,0.36845283,91279.0,91278.0,0.0008575]
[1731751382876,0.37426787,91279.0,91278.0,0.0008575]
[1731751386599,0.38426787,91279.0,91278.0,0.0008575]
[1731751386879,0.38426787,91279.0,91255.0,0.219164]
[1731751386880,0.1249,91266.0,91255.0,0.219164]
[1731751387083,0.0778,91265.0,91263.0,0.109572]
[1731751387299,0.0778,91265.0,91260.0,0.219152]
[1731751387300,0.08158889,91265.0,91260.0,0.219152]
[1731751387527,0.08158889,91265.0,91264.0,0.109572]
[1731751388896,0.19065144,91265.0,91264.0,0.109572]
[1731751392714,0.19065144,91265.0,91262.0,0.1104317]
[1731751392953,0.10906255,91264.0,91262.0,0.1104317]
[1731751393177,0.10906255,91264.0,91263.0,0.109573]
[1731751395522,0.00193628,91279.0,91276.0,0.109557]
[1731751395523,0.1305,91277.0,91276.0,0.109557]
[1731751395751,0.23956255,91277.0,91276.0,0.109557]
[1731751397182,0.23956255,91277.0,91273.0,0.10956]
[1731751397383,0.1305,91275.0,91265.0,0.10957]
[1731751397611,0.0476,91265.0,91263.0,0.109572]
[1731751397860,0.19196255,91264.0,91262.0,0.0008577]
[1731751398067,0.19196255,91264.0,91263.0,0.109573]
[1731751398819,0.19196255,91264.0,91262.0,0.0008577]
[1731751398820,0.132573,91263.0,91262.0,0.0008577]
[1731751399026,0.37213555,91263.0,91262.0,0.0008577]
[1731751399745,0.26256255,91263.0,91262.0,0.0008577]
[1731751401132,0.26256255,91263.0,91262.0,0.1104317]
[1731751402001,0.19196255,91263.0,91262.0,0.1104317]
[1731751402204,0.0462,91269.0,91262.0,0.1104317]
[1731751402205,0.0462,91269.0,91268.0,0.109567]
[1731751402461,0.15526255,91269.0,91268.0,0.109567]
[1731751406494,0.15526255,91269.0,91262.0,0.0008577]
[1731751406495,0.15526255,91269.0,91262.0,0.1104317]
[1731751406497,0.023,91266.0,91262.0,0.0008577]
[1731751406727,0.10906255,91265.0,91262.0,0.0008577]
[1731751406958,0.10906255,91265.0,91262.0,0.1104317]
[1731751407220,0.10906255,91265.0,91262.0,0.0008577]
[1731751407472,0.155773,91263.0,91262.0,0.0008577]
[1731751407728,0.36503555,91263.0,91262.0,0.0008577]
[1731751407977,0.3687929,91263.0,91262.0,0.0008577]
[1731751408209,0.2592199,91263.0,91262.0,0.0008577]
[1731751408692,0.2572199,91263.0,91262.0,0.0008577]
[1731751409897,0.2572199,91263.0,91262.0,0.1104317]
[1731751410128,0.25346255,91263.0,91262.0,0.1104317]
[1731751410359,0.17826255,91263.0,91262.0,0.1104317]
[1731751410579,0.18199425,91263.0,91262.0,0.1104317]
[1731751416313,0.15899425,91263.0,91262.0,0.1104317]
[1731751416528,0.15899425,91263.0,91257.0,0.03906127]
[1731751416737,0.0499317,91263.0,91262.0,0.109574]
[1731751417359,0.0462,91263.0,91262.0,0.109574]
[1731751417815,0.15898861,91263.0,91262.0,0.109574]
[1731751419131,0.15898861,91263.0,91262.0,0.11641872]
[1731751419314,0.00372606,91263.0,91262.0,0.11641872]
[1731751419531,0.0469,91272.0,91271.0,0.109563]
[1731751419748,0.15596255,91272.0,91271.0,0.109563]
[1731751419972,0.15968768,91272.0,91271.0,0.109563]
[1731751420188,0.15968768,91272.0,91271.0,0.11640773]
[1731751421108,0.15968768,91272.0,91271.0,0.00684473]
[1731751421344,0.16168768,91272.0,91271.0,0.00684473]
[1731751421568,0.16168768,91272.0,91271.0,0.003938]
[1731751421815,0.16168768,91272.0,91240.0,0.19396738]
[1731751421816,0.002,91257.0,91256.0,0.01095199]
[1731751422040,0.002,91256.0,91245.0,0.219188]
[1731751422270,0.002,91256.0,91243.0,0.219193]
[1731751422271,0.10906255,91255.0,91247.0,0.109592]
[1731751422489,0.11279898,91255.0,91244.0,0.219191]
[1731751422707,0.11279898,91255.0,91234.0,0.0775]
[1731751422708,0.11279898,91255.0,91241.0,0.16417037]
[1731751422932,0.109586,91252.0,91241.0,0.109599]
[1731751423181,0.109586,91252.0,91245.0,0.109594]
[1731751423182,0.10906255,91251.0,91245.0,0.109594]
[1731751423412,0.0819,91250.0,91244.0,0.109595]
[1731751423663,0.0819,91250.0,91242.0,0.109598]
[1731751423664,0.11278214,91249.0,91242.0,0.109598]
[1731751423895,0.11278214,91249.0,91241.0,0.219197]
[1731751423896,0.11478214,91249.0,91241.0,0.219197]
[1731751424127,0.11478214,91249.0,91245.0,0.109594]
[1731751424579,0.11478214,91249.0,91236.0,0.38338137]
[1731751424580,0.11478214,91249.0,91243.0,0.219194]
[1731751424821,0.0469,91248.0,91246.0,0.109592]
[1731751425069,0.11278203,91247.0,91244.0,0.109595]
[1731751425837,0.11278203,91247.0,91245.0,0.1104518]
[1731751426064,0.11278203,91247.0,91246.0,0.109593]
[1731751426547,0.11278203,91247.0,91245.0,0.0008578]
[1731751426548,0.002,91246.0,91245.0,0.0008578]
[1731751426798,0.22065555,91246.0,91245.0,0.0008578]
[1731751427016,0.35317497,91246.0,91245.0,0.0008578]
[1731751434285,0.15968197,91246.0,91245.0,0.0008578]
[1731751434512,0.11278197,91246.0,91245.0,0.1104528]
[1731751436587,0.10906255,91246.0,91245.0,0.1104528]
[1731751437040,0.11272041,91246.0,91245.0,0.1104528]
[1731751437769,0.00365786,91246.0,91245.0,0.1104528]
[1731751437986,0.00365786,91246.0,91245.0,0.1891528]
[1731751438236,0.0502156,91263.0,91262.0,0.109574]
[1731751438510,0.15927815,91263.0,91262.0,0.109574]
[1731751442626,0.15927815,91263.0,91261.0,0.109575]
[1731751442880,0.15927815,91263.0,91250.0,0.219178]
[1731751442881,0.10906255,91262.0,91250.0,0.219178]
[1731751443100,0.10906255,91262.0,91261.0,0.109575]
[1731751443999,0.10906255,91262.0,91261.0,0.10763872]
[1731751448272,0.11106255,91262.0,91261.0,0.10763872]
[1731751448517,0.10906255,91262.0,91261.0,0.10763872]
[1731751448737,0.0829,91257.0,91256.0,0.109581]
[1731751448972,0.19565084,91257.0,91256.0,0.109581]
[1731751451046,0.19565084,91257.0,91247.0,0.0390997]
[1731751451390,0.10906255,91256.0,91245.0,0.0008578]
[1731751451614,0.0474,91255.0,91254.0,0.109584]
[1731751451839,0.0474,91255.0,91248.0,0.219182]
[1731751451840,0.1601729,91255.0,91248.0,0.219182]
[1731751452083,0.10906255,91254.0,91252.0,0.109586]
[1731751452296,0.10906255,91254.0,91253.0,0.109585]
[1731751452518,0.10906255,91254.0,91245.0,0.0008578]
[1731751452795,0.002,91249.0,91245.0,0.0008578]
[1731751453011,0.10906255,91248.0,91247.0,0.109591]
[1731751453244,0.11276117,91248.0,91247.0,0.109591]
[1731751454413,0.16016117,91248.0,91247.0,0.109592]
[1731751460657,0.00369862,91248.0,91247.0,0.109592]
[1731751460896,0.00369862,91248.0,91247.0,0.237392]
[1731751461143,0.16417037,91270.0,91262.0,0.109574]
[1731751461393,0.16417037,91270.0,91262.0,0.190274]
[1731751462314,0.16417037,91270.0,91262.0,0.109574]
[1731751463514,0.0017154,91272.0,91262.0,0.109574]
[1731751463738,0.0017154,91272.0,91262.0,0.190274]
[1731751464866,0.0017154,91272.0,91262.0,0.22968648]
[1731751475969,0.0017154,91272.0,91262.0,0.14898648]
[1731751478680,0.0017154,91272.0,91260.0,0.21813848]
[1731751478897,0.0017154,91272.0,91262.0,0.109574]
[1731751483814,0.001715,91280.0,91262.0,0.109574]
[1731751483815,0.001715,91280.0,91277.0,0.109556]
[1731751484087,0.0008578,91285.0,91282.0,0.11955]
[1731751484312,0.0008976,91300.0,91288.0,0.005]
[1731751484537,0.0008976,91300.0,91299.0,0.10953]
[1731751485455,0.0008976,91300.0,91299.0,0.1494687]
[1731751495915,0.0008976,91300.0,91299.0,0.10953]
[1731751498146,0.0008976,91300.0,91297.0,0.06488637]
[1731751498373,0.0008976,91300.0,91296.0,0.0390584]
[1731751498823,0.0008976,91300.0,91299.0,0.10953]
[1731751500192,0.0008976,91300.0,91299.0,0.19063]
[1731751501319,0.0008976,91300.0,91299.0,0.20063]
[1731751504333,9e-07,91302.0,91301.0,0.119527]
[1731751504604,9e-07,91302.0,91301.0,0.27758955]
[1731751504818,9e-07,91302.0,91301.0,0.30975843]
[1731751505304,8e-07,91306.0,91305.0,0.119523]
[1731751505585,0.000858,91315.0,91314.0,0.114512]
[1731751506032,0.000858,91315.0,91314.0,0.109512]
[1731751506746,0.000858,91315.0,91314.0,0.14930611]
[1731751508347,0.000858,91315.0,91314.0,0.109512]
[1731751519764,0.000858,91315.0,91314.0,0.23888241]
[1731751519989,0.000858,91315.0,91314.0,0.114512]
[1731751531740,0.0451,91335.0,91319.0,0.114506]
[1731751532918,2e-07,91320.0,91319.0,0.202306]
[1731751533159,0.16417037,91336.0,91328.0,0.114495]
[1731751533382,0.16417037,91336.0,91328.0,0.23886541]
[1731751534047,0.16417037,91336.0,91328.0,0.24386541]
[1731751536673,0.049,91346.0,91328.0,0.24386541]
[1731751538208,0.049,91346.0,91328.0,0.28733081]
[1731751539354,0.049,91346.0,91328.0,0.28233081]
[1731751539561,0.049,91346.0,91328.0,0.28733081]
[1731751540647,0.049,91346.0,91328.0,0.17283581]